bitfinex-derivatives/quotes_ETHF0:USTF0_20250422
["timestamp","ask_amount","ask_price","bid_price","bid_amount"]
[1745305307219,12.09141662,1584.3,1584.2,0.00949366]
[1745305308120,12.09141662,1584.3,1584.2,6.33149366]
[1745305316129,12.09141662,1584.3,1584.2,0.00949366]
[1745305316323,12.98481662,1584.3,1584.2,0.00949366]
[1745305318133,12.98481662,1584.3,1584.2,6.33149366]
[1745305320631,10.35101662,1584.3,1584.2,6.33149366]
[1745305320830,10.35101662,1584.3,1584.2,9.00099366]
[1745305321131,5.88073662,1584.3,1584.2,15.26355366]
[1745305321333,7.14321662,1584.3,1584.2,15.26355366]
[1745305321819,9.08853662,1584.5,1584.2,17.20879366]
[1745305322026,10.35088662,1584.5,1584.4,1.2624]
[1745305322230,10.35088662,1584.5,1584.4,7.5844]
[1745305322423,10.35088662,1584.5,1584.4,8.4356]
[1745305323627,10.35088662,1584.5,1584.4,10.249]
[1745305324331,9.08853662,1584.5,1584.4,10.249]
[1745305325229,9.08853662,1584.5,1584.4,15.249]
[1745305325634,9.08853662,1584.5,1584.4,56.049]
[1745305325833,3.2078,1584.7,1584.6,1.26224]
[1745305326033,3.2078,1584.7,1584.6,6.26224]
[1745305326529,0.50453662,1585.0,1584.8,1.26208]
[1745305326727,1.76652662,1585.0,1584.9,1.8154]
[1745305326929,1.76652662,1585.0,1584.9,3.5585]
[1745305327125,1.76652662,1585.0,1584.9,9.8805]
[1745305327332,1.76652662,1585.0,1584.9,8.1374]
[1745305328928,3.61362662,1585.0,1584.9,8.1374]
[1745305330532,1.76652662,1585.0,1584.9,8.1374]
[1745305330935,1.76652662,1585.0,1584.9,9.9198]
[1745305334137,3.57462662,1585.0,1584.9,9.9198]
[1745305339841,1.26216,1584.7,1584.6,1.26222]
[1745305340140,1.26208,1584.8,1584.7,2.6227]
[1745305340341,2.99268,1584.8,1584.7,2.6227]
[1745305341139,2.99268,1584.8,1584.7,8.9447]
[1745305342139,3.49721662,1584.8,1584.7,8.9447]
[1745305342942,6.70501662,1584.8,1584.7,8.9447]
[1745305343245,6.70501662,1584.8,1584.7,6.322]
[1745305344441,1.26248,1584.3,1584.2,0.00949366]
[1745305345144,1.26248,1584.3,1584.2,6.33149366]
[1745305347546,1.26248,1584.3,1584.2,8.16359366]
[1745305349143,3.11708,1584.3,1584.2,8.16359366]
[1745305349344,1.76698662,1584.4,1584.2,9.42615366]
[1745305349548,0.50453662,1584.4,1584.3,3.88308]
[1745305349746,1.76693662,1584.4,1584.3,3.88308]
[1745305349948,1.76693662,1584.4,1584.3,2.6206]
[1745305350250,1.76693662,1584.4,1584.3,5.8284]
[1745305350450,3.62153662,1584.4,1584.3,2.6206]
[1745305353755,3.117,1584.4,1584.3,2.6206]
[1745305355252,3.117,1584.4,1584.3,0.9179]
[1745305355554,1.26248,1584.3,1584.2,8.17699366]
[1745305355753,3.10498,1584.3,1584.2,8.17699366]
[1745305355954,3.10498,1584.3,1584.2,6.33149366]
[1745305356347,3.10498,1584.3,1584.2,8.17699366]
[1745305356856,3.10498,1584.3,1584.2,6.33149366]
[1745305359755,3.60951662,1584.3,1584.2,6.33149366]
[1745305359961,7.74851662,1584.3,1584.2,6.33149366]
[1745305365668,7.74851662,1584.3,1584.2,8.14809366]
[1745305366164,5.40148,1584.3,1584.2,8.14809366]
[1745305366570,7.12228,1584.3,1584.2,8.14809366]
[1745305368067,10.33008,1584.3,1584.2,8.14809366]
[1745305368765,6.19108,1584.3,1584.2,8.14809366]
[1745305369066,6.19108,1584.3,1584.2,6.33149366]
[1745305369566,6.19108,1584.3,1584.2,8.15909366]
[1745305370466,6.19108,1584.3,1584.2,6.33149366]
[1745305370954,6.19108,1584.3,1584.2,8.15429366]
[1745305371366,2.98328,1584.3,1584.2,8.15429366]
[1745305375268,6.19108,1584.3,1584.2,6.33149366]
[1745305376268,6.68317554,1584.3,1584.2,6.33149366]
[1745305376470,7.18771216,1584.3,1584.2,5.01004366]
[1745305379074,6.69561662,1584.3,1584.2,5.01004366]
[1745305379673,6.69561662,1584.3,1584.2,5.86084366]
[1745305380165,6.69561662,1584.3,1584.2,5.01004366]
[1745305385069,1.26256,1584.2,1584.1,0.00949366]
[1745305385277,4.68206,1584.2,1584.1,0.00949366]
[1745305385970,5.18659662,1584.2,1584.1,0.00949366]
[1745305387181,5.18659662,1584.2,1584.1,1.74179366]
[1745305387675,5.18659662,1584.2,1584.1,0.00949366]
[1745305388881,5.18659662,1584.2,1584.1,1.79239366]
[1745305389282,3.46029662,1584.2,1584.1,1.79239366]
[1745305389483,1.76709662,1584.2,1584.1,1.79239366]
[1745305391888,1.26256,1584.2,1584.1,1.79239366]
[1745305392983,4.47036,1584.2,1584.1,1.79239366]
[1745305393192,6.29216,1584.2,1584.1,1.79239366]
[1745305394901,6.29216,1584.2,1584.1,0.00949366]
[1745305395598,6.29216,1584.2,1584.1,1.75589366]
[1745305397099,6.29216,1584.2,1584.1,0.00949366]
[1745305397805,6.79669662,1584.2,1584.1,0.00949366]
[1745305399710,4.97489662,1584.2,1584.1,0.00949366]
[1745305399907,6.75999662,1584.2,1584.1,0.00949366]
[1745305410008,6.75999662,1584.2,1584.1,0.85029366]
[1745305411111,6.75999662,1584.2,1584.1,0.00949366]
[1745305414514,6.75999662,1584.2,1584.1,1.84519366]
[1745305417805,10.89899662,1584.2,1584.1,1.84519366]
[1745305419617,9.11389662,1584.2,1584.1,1.84519366]
[1745305422215,10.81569662,1584.2,1584.1,0.00949366]
[1745305423921,10.81569662,1584.2,1584.1,1.86059366]
[1745305437324,10.81569662,1584.2,1584.1,0.00949366]
[1745305441335,1.76709662,1584.2,1584.1,6.69759366]
[1745305441526,1.26256,1584.2,1584.1,6.69759366]
[1745305443532,1.26252,1584.3,1584.2,1.26249]
[1745305443735,1.26252,1584.3,1584.2,9.9226]
[1745305444034,1.26252,1584.3,1584.2,16.18516]
[1745305444234,1.26252,1584.3,1584.2,63.30716]
[1745305444932,0.00949366,1584.4,1584.3,1.26248]
[1745305445136,1.27197366,1584.4,1584.3,3.88448]
[1745305445432,0.00949366,1584.4,1584.3,7.622]
[1745305445634,0.00949366,1584.4,1584.3,8.88448]
[1745305446228,0.00949366,1584.4,1584.3,49.68448]
[1745305446434,1.26231,1584.6,1584.4,1.2624]
[1745305446635,1.26231,1584.6,1584.5,9.1064]
[1745305446831,1.26221,1584.7,1584.5,10.0012]
[1745305447033,1.26221,1584.7,1584.6,2.6051]
[1745305447426,3.15521,1584.9,1584.6,7.6051]
[1745305447629,1.26208,1584.8,1584.7,1.7616]
[1745305447835,4.46974,1585.0,1584.7,1.7616]
[1745305448035,1.26194,1585.0,1584.8,3.2078]
[1745305448224,1.26194,1585.0,1584.9,2.6051]
[1745305449235,1.26194,1585.0,1584.9,8.9271]
[1745305449740,1.26191,1585.1,1584.9,8.9271]
[1745305449928,1.26191,1585.1,1585.0,1.8033]
[1745305450133,5.44373662,1585.2,1585.0,1.8033]
[1745305450327,6.70552662,1585.2,1585.0,1.8033]
[1745305450525,1.76632662,1585.2,1585.0,1.8033]
[1745305450731,4.97412662,1585.2,1585.0,1.8033]
[1745305451034,4.97410662,1585.2,1585.0,1.8033]
[1745305451235,4.97410662,1585.2,1585.0,8.1253]
[1745305451740,4.97410662,1585.2,1585.1,1.8033]
[1745305452042,3.71233662,1585.2,1585.1,1.8033]
[1745305452239,4.97410662,1585.2,1585.1,1.8033]
[1745305453236,4.97410662,1585.2,1585.0,6.322]
[1745305453237,1.26185,1585.1,1585.0,5.04994634]
[1745305453537,3.88665,1585.1,1585.0,5.04994634]
[1745305455040,2.6248,1585.1,1585.0,5.04994634]
[1745305455434,3.71233662,1585.2,1585.0,8.05344634]
[1745305455634,3.71233662,1585.2,1585.1,1.7416]
[1745305455830,3.71233662,1585.2,1585.1,3.00345]
[1745305456445,3.2078,1585.2,1585.1,3.00345]
[1745305457042,5.0028,1585.2,1585.1,3.00345]
[1745305458039,1.795,1585.2,1585.1,3.00345]
[1745305458348,6.26457,1585.2,1585.1,1.7416]
[1745305458646,6.26457,1585.2,1585.1,3.00345]
[1745305459044,6.26457,1585.2,1585.1,1.26185]
[1745305459252,1.26185,1585.1,1585.0,8.14240634]
[1745305459544,3.90355,1585.1,1585.0,8.14240634]
[1745305459737,2.6417,1585.1,1585.0,8.14240634]
[1745305459937,3.90355,1585.1,1585.0,6.88054634]
[1745305460138,3.90355,1585.1,1585.0,5.04994634]
[1745305469447,2.6417,1585.1,1585.0,6.83764634]
[1745305469647,1.26185,1585.1,1585.0,6.83764634]
[1745305469846,1.26185,1585.1,1585.0,7.73494634]
[1745305470143,1.26185,1585.1,1585.0,12.73494634]
[1745305471245,1.26185,1585.1,1585.0,15.94274634]
[1745305471453,1.26185,1585.1,1585.0,17.20459634]
[1745305472252,1.26185,1585.1,1585.0,15.94274634]
[1745305473852,1.26185,1585.1,1585.0,12.73494634]
[1745305474051,1.26185,1585.1,1585.0,7.73494634]
[1745305474351,1.26185,1585.1,1585.0,10.94274634]
[1745305475850,2.534,1585.3,1585.0,12.20467634]
[1745305476153,3.79569,1585.3,1585.1,1.806]
[1745305476650,3.79569,1585.3,1585.2,0.915]
[1745305477248,3.79569,1585.3,1585.2,7.237]
[1745305478754,2.534,1585.3,1585.2,7.237]
[1745305478951,3.79569,1585.3,1585.2,7.237]
[1745305479144,3.79569,1585.3,1585.2,9.0293]
[1745305482653,3.79569,1585.3,1585.2,6.322]
[1745305482855,7.00349,1585.3,1585.2,6.322]
[1745305483452,12.00349,1585.3,1585.2,6.322]
[1745305484551,7.00349,1585.3,1585.2,6.322]
[1745305498974,7.00349,1585.3,1585.2,4.85297]
[1745305499175,12.00349,1585.3,1585.2,3.30172]
[1745305499472,7.00349,1585.3,1585.2,3.30172]
[1745305502480,17.4929635,1585.3,1585.2,3.30172]
[1745305505184,7.00349,1585.3,1585.2,3.30172]
[1745305512302,7.50802662,1585.3,1585.2,3.30172]
[1745305512990,17.98802662,1585.3,1585.2,3.30172]
[1745305513196,7.50802662,1585.3,1585.2,3.30172]
[1745305515497,17.99750012,1585.3,1585.2,3.30172]
[1745305519795,17.99750012,1585.3,1585.2,4.20232]
[1745305523305,28.47750012,1585.3,1585.2,4.20232]
[1745305523607,17.99750012,1585.3,1585.2,4.20232]
[1745305523801,17.99750012,1585.3,1585.2,3.30172]
[1745305524002,17.99750012,1585.3,1585.2,0.51979]
[1745305527211,1.26185,1585.1,1585.0,0.8753]
[1745305527400,4.46965,1585.1,1585.0,0.8753]
[1745305527601,6.28345,1585.1,1585.0,0.8753]
[1745305528108,6.28345,1585.1,1585.0,7.1973]
[1745305528606,10.91998662,1585.1,1585.0,0.48576]
[1745305528801,1.26193,1585.0,1584.9,0.00946342]
[1745305529001,4.85423,1585.0,1584.9,0.00946342]
[1745305529307,1.26193,1585.0,1584.9,8.01316342]
[1745305529506,1.26193,1585.0,1584.9,13.86366342]
[1745305530006,1.26192,1585.1,1584.9,15.12565342]
[1745305530307,1.26193,1585.0,1584.9,12.18196342]
[1745305530903,1.26193,1585.0,1584.9,13.44397342]
[1745305531210,1.26193,1585.0,1584.9,12.18196342]
[1745305532212,1.26193,1585.0,1584.9,7.18196342]
[1745305536003,1.2768,1585.1,1584.9,7.18196342]
[1745305538414,0.0149,1585.1,1585.0,4.46973]
[1745305538812,12.25565012,1585.4,1585.0,8.2078]
[1745305539108,11.7511635,1585.4,1585.1,1.26184]
[1745305539313,11.7511635,1585.4,1585.2,0.8929]
[1745305539512,11.7660635,1585.4,1585.2,0.8929]
[1745305540114,11.7660635,1585.4,1585.2,7.2149]
[1745305540613,1.27659,1585.4,1585.2,7.2149]
[1745305540808,1.26169,1585.3,1585.2,7.2149]
[1745305541014,3.86619,1585.3,1585.2,7.2149]
[1745305541812,2.6045,1585.3,1585.2,7.2149]
[1745305542011,3.86619,1585.3,1585.2,6.322]
[1745305542412,2.6045,1585.3,1585.2,6.322]
[1745305542607,0.0149,1585.4,1585.2,6.322]
[1745305542812,1.26169,1585.3,1585.2,6.322]
[1745305543113,3.93596,1585.4,1585.2,6.322]
[1745305544318,2.6743,1585.4,1585.2,6.322]
[1745305544519,3.93597,1585.4,1585.2,6.322]
[1745305544717,3.93596,1585.4,1585.2,6.322]
[1745305544919,2.94609,1585.3,1585.2,6.322]
[1745305545720,7.06189,1585.3,1585.2,6.322]
[1745305553222,11.19389,1585.3,1585.2,6.322]
[1745305556717,11.19389,1585.3,1585.2,8.0007]
[1745305557723,10.28589,1585.3,1585.2,8.0007]
[1745305559327,7.07809,1585.3,1585.2,8.0007]
[1745305559520,6.15389,1585.3,1585.2,8.0007]
[1745305560029,2.94609,1585.3,1585.2,8.0007]
[1745305561228,6.15389,1585.3,1585.2,8.0007]
[1745305561426,2.94609,1585.3,1585.2,8.0007]
[1745305561627,6.15389,1585.3,1585.2,8.0007]
[1745305562325,6.15389,1585.3,1585.2,6.322]
[1745305562719,1.26169,1585.3,1585.2,6.322]
[1745305563026,1.26169,1585.3,1585.2,8.1264]
[1745305567832,2.96988,1585.4,1585.2,8.1264]
[1745305568023,3.82461,1585.4,1585.3,0.9264]
[1745305568224,3.82461,1585.4,1585.3,2.7684]
[1745305568424,3.80971,1585.4,1585.3,2.7684]
[1745305569434,2.95491,1585.4,1585.3,2.7684]
[1745305569826,1.26161,1585.4,1585.3,2.7684]
[1745305570831,1.26161,1585.4,1585.3,0.9264]
[1745305571035,2.95661,1585.4,1585.3,0.9264]
[1745305571635,2.95661,1585.4,1585.3,2.6257]
[1745305573542,2.95661,1585.4,1585.3,3.88739]
[1745305575738,1.695,1585.4,1585.3,3.88739]
[1745305575943,2.95661,1585.4,1585.3,3.88739]
[1745305577244,2.95661,1585.4,1585.3,2.6257]
[1745305577634,2.95661,1585.4,1585.3,3.88739]
[1745305577836,2.95661,1585.4,1585.3,2.6257]
[1745305579245,1.26161,1585.4,1585.3,3.88739]
[1745305579442,1.26161,1585.4,1585.3,3.4626]
[1745305581138,1.26161,1585.4,1585.3,4.72429]
[1745305583046,1.26161,1585.4,1585.3,3.4626]
[1745305583849,1.26161,1585.4,1585.3,4.72429]
[1745305584147,1.26161,1585.4,1585.3,3.4626]
[1745305584338,3.03381,1585.4,1585.3,3.4626]
[1745305586852,3.03381,1585.4,1585.3,4.72429]
[1745305588649,1.26161,1585.4,1585.3,4.72429]
[1745305589245,13.6972735,1585.7,1585.5,1.26145]
[1745305589554,14.9586435,1585.7,1585.6,2.5365]
[1745305589852,14.9586435,1585.7,1585.6,44.59795]
[1745305590048,14.9586435,1585.7,1585.6,43.3365]
[1745305590251,14.9586435,1585.7,1585.6,40.8]
[1745305590450,17.5066435,1585.7,1585.6,40.8]
[1745305591455,1.26145,1585.6,1585.5,9.27813]
[1745305591846,16.2452735,1585.7,1585.6,1.26145]
[1745305592048,16.2452735,1585.7,1585.6,3.82415]
[1745305592246,17.5066435,1585.7,1585.6,2.5627]
[1745305592547,14.2988435,1585.7,1585.6,2.5627]
[1745305592855,13.0374735,1585.7,1585.6,3.82415]
[1745305593048,13.6972735,1585.7,1585.6,3.82415]
[1745305593355,13.6972735,1585.7,1585.6,4.73805]
[1745305595352,3.2078,1585.7,1585.6,4.73805]
[1745305596851,4.46917,1585.7,1585.6,4.73805]
[1745305598951,3.2078,1585.7,1585.6,4.73805]
[1745305600049,4.46917,1585.7,1585.6,1.26145]
[1745305600557,4.46917,1585.7,1585.6,4.03285]
[1745305601260,3.2078,1585.7,1585.6,4.03285]
[1745305601652,3.2078,1585.7,1585.6,4.93685]
[1745305602551,3.99616,1585.8,1585.7,1.26137]
[1745305602751,3.98692145,1585.8,1585.7,1.26137]
[1745305603247,3.98692145,1585.8,1585.7,9.34237]
[1745305604259,2.72556145,1585.8,1585.7,9.34237]
[1745305605856,0.88276145,1585.8,1585.7,9.34237]
[1745305607260,0.88276145,1585.8,1585.7,50.14237]
[1745305608358,2.71646145,1585.8,1585.7,50.14237]
[1745305612168,4.70527,1586.0,1585.9,1.26113]
[1745305612768,4.46891,1586.1,1586.0,1.26113]
[1745305613064,7.02121,1586.1,1586.0,7.58313]
[1745305613269,7.02115,1586.1,1586.0,7.58313]
[1745305613460,5.7601,1586.1,1586.0,7.58313]
[1745305613655,7.02115,1586.1,1586.0,7.58313]
[1745305613859,3.81335,1586.1,1586.0,7.58313]
[1745305614557,3.81335,1586.1,1586.0,6.322]
[1745305614767,7.02115,1586.1,1586.0,6.322]
[1745305628477,1.26121,1585.9,1585.8,3.42e-06]
[1745305628685,4.46901,1585.9,1585.8,3.42e-06]
[1745305628979,13.01131,1585.9,1585.8,3.42e-06]
[1745305629281,13.12341356,1585.9,1585.8,3.42e-06]
[1745305629781,1.26129,1585.8,1585.7,4.69499342]
[1745305629981,7.25539356,1585.8,1585.7,2.77999342]
[1745305630181,12.25539356,1585.8,1585.7,2.77999342]
[1745305630380,12.25539356,1585.8,1585.7,0.88044342]
[1745305630577,12.25539356,1585.8,1585.7,3.42e-06]
[1745305631784,12.25540344,1585.8,1585.7,3.42e-06]
[1745305631981,6.30748,1585.6,1585.2,8.34030714]
[1745305632287,1.26169,1585.3,1585.2,6.322]
[1745305632686,3.04059,1585.3,1585.2,6.322]
[1745305634180,1.26169,1585.3,1585.2,6.322]
[1745305634587,1.26169,1585.3,1585.2,8.0292]
[1745305637183,3.05579,1585.3,1585.2,8.0292]
[1745305637991,1.26169,1585.3,1585.2,8.0292]
[1745305638588,1.26169,1585.3,1585.2,14.29097]
[1745305638788,1.26169,1585.3,1585.2,18.41697]
[1745305639893,1.26169,1585.3,1585.2,17.1552]
[1745305640491,1.26169,1585.3,1585.2,18.41697]
[1745305640883,1.26169,1585.3,1585.2,17.1552]
[1745305641488,1.26169,1585.3,1585.2,12.1552]
[1745305642093,1.26169,1585.3,1585.2,13.41697]
[1745305642596,8.18244,1585.6,1585.3,1.26167]
[1745305642890,1.26161,1585.5,1585.4,3.07651]
[1745305643591,6.29029,1585.6,1585.4,3.07651]
[1745305643791,6.29029,1585.6,1585.5,1.832]
[1745305644387,5.0288,1585.6,1585.5,3.09353]
[1745305645095,5.0288,1585.6,1585.5,9.41553]
[1745305645593,3.2078,1585.6,1585.5,9.41553]
[1745305645786,19.58906012,1585.9,1585.7,1.26134]
[1745305645987,6.6733,1585.9,1585.8,1.26129]
[1745305646185,0.00935919,1586.0,1585.9,1.26121]
[1745305646886,1.27048919,1586.0,1585.9,1.26121]
[1745305647194,1.27048919,1586.0,1585.9,7.58321]
[1745305647493,2.96788919,1586.0,1585.9,6.322]
[1745305647892,2.96788919,1586.0,1585.9,9.37001]
[1745305648388,1.70675919,1586.0,1585.9,9.37001]
[1745305649895,0.00935919,1586.0,1585.9,9.37001]
[1745305651593,1.73455919,1586.0,1585.9,9.37001]
[1745305651895,1.73455919,1586.0,1585.9,8.1088]
[1745305652986,2.99568919,1586.0,1585.9,8.1088]
[1745305658599,1.27048919,1586.0,1585.9,9.37001]
[1745305659091,1.27048919,1586.0,1585.9,8.1088]
[1745305659289,1.27048919,1586.0,1585.9,9.37001]
[1745305660194,1.27048919,1586.0,1585.9,8.1088]
[1745305660897,1.27048919,1586.0,1585.9,6.322]
[1745305661104,3.02538919,1586.0,1585.9,6.322]
[1745305663897,6.23318919,1586.0,1585.9,6.322]
[1745305666900,7.10628919,1586.0,1585.9,6.322]
[1745305668703,7.10628919,1586.0,1585.9,8.9954]
[1745305669203,6.23318919,1586.0,1585.9,8.9954]
[1745305669905,3.02538919,1586.0,1585.9,8.9954]
[1745305670700,3.02538919,1586.0,1585.9,10.25661]
[1745305670701,0.00935919,1586.0,1585.9,10.25661]
[1745305672009,1.27048919,1586.0,1585.9,10.25661]
[1745305673814,0.00935919,1586.0,1585.9,10.25661]
[1745305674119,1.26112,1586.1,1586.0,1.26106]
[1745305674320,1.26112,1586.1,1586.0,3.97846]
[1745305675221,1.26112,1586.1,1586.0,10.30046]
[1745305675410,1.26112,1586.1,1586.0,9.0394]
[1745305675613,1.26112,1586.1,1586.0,8.1488]
[1745305675813,2.96702,1586.1,1586.0,8.1488]
[1745305676223,2.96702,1586.1,1586.0,6.322]
[1745305681523,2.96695,1586.1,1586.0,6.322]
[1745305682024,3.82895,1586.1,1586.0,6.322]
[1745305684818,1.26105,1586.1,1586.0,8.125]
[1745305685219,1.26105,1586.1,1586.0,8.9911]
[1745305685420,4.96636342,1586.2,1586.0,10.25223]
[1745305685724,3.21726342,1586.2,1586.1,1.803]
[1745305685925,4.47823342,1586.2,1586.1,1.803]
[1745305690529,1.26105,1586.1,1586.0,6.322]
[1745305690722,2.95825,1586.1,1586.0,8.0935]
[1745305695430,2.95825,1586.1,1586.0,9.35463]
[1745305695638,2.95825,1586.1,1586.0,8.0935]
[1745305697637,1.27043342,1586.2,1586.1,1.26105]
[1745305697839,1.27043342,1586.2,1586.1,6.8811]
[1745305698136,1.27043342,1586.2,1586.1,2.7591]
[1745305698537,3.79603342,1586.2,1586.1,2.7591]
[1745305699138,3.79603342,1586.2,1586.1,4.02015]
[1745305699343,3.79603342,1586.2,1586.1,2.7591]
[1745305700242,1.26105,1586.1,1586.0,6.322]
[1745305700541,3.84375,1586.1,1586.0,6.322]
[1745305702844,3.84375,1586.1,1586.0,6.322]
[1745305706240,3.84375,1586.1,1586.0,8.9248]
[1745305707751,1.26105,1586.1,1586.0,8.9248]
[1745305714543,1.26105,1586.1,1586.0,13.39373]
[1745305714944,1.26105,1586.1,1586.0,8.9248]
[1745305718656,1.26105,1586.1,1586.0,10.18593]
[1745305719850,4.89802342,1586.2,1586.0,10.18593]
[1745305719851,3.00657342,1586.2,1586.0,10.18593]
[1745305720152,3.00657342,1586.2,1586.1,1.7364]
[1745305720952,3.00657342,1586.2,1586.0,7.2153]
[1745305720953,1.26105,1586.1,1586.0,7.2153]
[1745305721150,4.90945,1586.1,1586.0,6.3517]
[1745305721450,4.90945,1586.1,1586.0,6.322]
[1745305722957,4.90945,1586.1,1586.0,7.58313]
[1745305723757,3.6484,1586.1,1586.0,7.58313]
[1745305723958,3.6484,1586.1,1586.0,9.31793]
[1745305725251,2.7741,1586.1,1586.0,9.31793]
[1745305726159,0.00946342,1586.2,1586.1,1.26105]
[1745305726359,0.00946342,1586.2,1586.1,3.84385]
[1745305728060,1.27043342,1586.2,1586.1,2.5828]
[1745305728563,2.98713342,1586.2,1586.1,2.5828]
[1745305729555,1.72616342,1586.2,1586.1,2.5828]
[1745305729862,2.98713342,1586.2,1586.1,2.5828]
[1745305731865,1.27043342,1586.2,1586.1,2.5828]
[1745305734676,3.11003342,1586.2,1586.1,2.5828]
[1745305734967,1.26105,1586.1,1586.0,6.322]
[1745305735165,7.21005,1586.1,1586.0,6.322]
[1745305735576,7.21005,1586.1,1586.0,6.3517]
[1745305737578,4.00225,1586.1,1586.0,6.3517]
[1745305737973,7.21005,1586.1,1586.0,6.3517]
[1745305738680,4.00225,1586.1,1586.0,6.3517]
[1745305739074,4.00225,1586.1,1586.0,8.142]
[1745305739778,3.10065,1586.1,1586.0,8.142]
[1745305739978,1.26105,1586.1,1586.0,9.40313]
[1745305740378,1.26105,1586.1,1586.0,12.262]
[1745305743283,3.86565,1586.1,1586.0,6.3517]
[1745305743780,7.07345,1586.1,1586.0,6.3517]
[1745305743976,3.86565,1586.1,1586.0,6.3517]
[1745305744878,3.86565,1586.1,1586.0,8.0605]
[1745305746080,3.86565,1586.1,1586.0,6.3517]
[1745305748880,7.07345,1586.1,1586.0,6.3517]
[1745305751678,7.07345,1586.1,1586.0,6.34234081]
[1745305751679,12.18553627,1586.1,1586.0,6.34234081]
[1745305752386,12.18554015,1586.1,1586.0,6.34234081]
[1745305753080,7.18554015,1586.1,1586.0,6.34234081]
[1745305753286,12.18554015,1586.1,1586.0,6.34234081]
[1745305753582,12.07345,1586.1,1586.0,6.34234081]
[1745305753988,7.07345,1586.1,1586.0,6.34234081]
[1745305766993,7.07345,1586.1,1586.0,4.97372081]
[1745305767291,7.07345,1586.1,1586.0,1.86383081]
[1745305767485,7.18553958,1586.1,1586.0,8.1e-07]
[1745305767793,1.26113,1586.0,1585.9,0.00946342]
[1745305767994,3.93723,1586.0,1585.9,0.00946342]
[1745305768292,3.93723,1586.0,1585.9,6.33146342]
[1745305768490,8.93723,1586.0,1585.9,6.33146342]
[1745305768694,3.93723,1586.0,1585.9,6.33146342]
[1745305771291,1.26113,1586.0,1585.9,6.33146342]
[1745305772088,1.26113,1586.0,1585.9,14.83246342]
[1745305773997,1.26113,1586.0,1585.9,9.83246342]
[1745305778801,11.32924342,1586.2,1585.9,9.83246342]
[1745305779000,1.26105,1586.1,1586.0,1.8063]
[1745305780095,1.26105,1586.1,1586.0,8.1283]
[1745305781000,3.08985,1586.1,1586.0,8.1283]
[1745305782300,3.95895,1586.1,1586.0,8.1283]
[1745305782499,3.95895,1586.1,1586.0,6.322]
[1745305786408,8.07695,1586.1,1586.0,6.322]
[1745305787601,13.07695,1586.1,1586.0,3.9789]
[1745305787798,1.26145,1585.6,1585.5,0.9178]
[1745305787998,1.26161,1585.4,1585.3,11.07028114]
[1745305788208,1.26161,1585.4,1585.3,11.95098114]
[1745305788397,4.46941,1585.4,1585.3,11.04374259]
[1745305788905,6.21541,1585.4,1585.3,2.6802]
[1745305791808,4.46941,1585.4,1585.3,2.6802]
[1745305792201,1.26161,1585.4,1585.3,2.6802]
[1745305792402,4.46941,1585.4,1585.3,2.6802]
[1745305793610,1.26161,1585.4,1585.3,2.6802]
[1745305793811,4.46941,1585.4,1585.3,2.6802]
[1745305794307,1.26161,1585.4,1585.3,2.6802]
[1745305794509,4.46941,1585.4,1585.3,2.6802]
[1745305795916,1.26161,1585.4,1585.3,2.6802]
[1745305796209,1.26156,1585.5,1585.3,13.06084]
[1745305796514,1.26156,1585.5,1585.4,2.6206]
[1745305797213,1.26156,1585.5,1585.4,8.9426]
[1745305798909,1.26156,1585.5,1585.4,13.9426]
[1745305800018,1.26156,1585.5,1585.4,8.9426]
[1745305801621,1.26148,1585.6,1585.5,1.26147]
[1745305801915,1.26137,1585.7,1585.5,2.6367]
[1745305802111,1.26137,1585.7,1585.6,1.7679]
[1745305802410,3.06797,1585.7,1585.6,1.7679]
[1745305803508,3.06804,1585.7,1585.5,7.1908]
[1745305803713,1.7957,1585.6,1585.5,8.9492]
[1745305804018,1.7957,1585.6,1585.5,7.1908]
[1745305804819,3.05715,1585.6,1585.5,7.1908]
[1745305805121,1.7957,1585.6,1585.5,7.1908]
[1745305805319,3.05715,1585.6,1585.5,7.1908]
[1745305805828,6.26495,1585.6,1585.5,7.1908]
[1745305806024,7.18705,1585.6,1585.5,7.1908]
[1745305806919,7.18705,1585.6,1585.5,6.322]
[1745305807221,12.18705,1585.6,1585.5,6.322]
[1745305809529,7.18705,1585.6,1585.5,6.322]
[1745305810126,3.97925,1585.6,1585.5,6.322]
[1745305810425,7.18705,1585.6,1585.5,6.322]
[1745305811424,7.69158662,1585.6,1585.5,6.322]
[1745305811829,6.43013662,1585.6,1585.5,6.322]
[1745305812027,3.56168662,1585.6,1585.5,6.322]
[1745305817131,3.05715,1585.6,1585.5,6.322]
[1745305820631,6.26495,1585.6,1585.5,6.322]
[1745305827039,6.26495,1585.6,1585.5,5.02175]
[1745305828849,3.05715,1585.6,1585.5,5.02175]
[1745305829247,3.05715,1585.6,1585.5,7.62205]
[1745305829749,3.05715,1585.6,1585.5,5.02175]
[1745305829939,6.26495,1585.6,1585.5,5.02175]
[1745305832146,6.76948662,1585.6,1585.5,5.02175]
[1745305832351,6.88160695,1585.6,1585.5,1.70327]
[1745305832653,1.26169,1585.3,1585.2,1.78806342]
[1745305832951,4.46949,1585.3,1585.2,1.78806342]
[1745305833252,7.07389,1585.3,1585.2,8.11006342]
[1745305835152,7.07389,1585.3,1585.2,6.33146342]
[1745305835850,7.57842662,1585.3,1585.2,6.33146342]
[1745305839052,1.26201,1584.9,1584.8,0.868]
[1745305839251,4.46981,1584.9,1584.8,2.6161]
[1745305839650,7.18541,1584.9,1584.8,1.7481]
[1745305840054,7.18541,1584.9,1584.7,5.03119342]
[1745305840055,1.26208,1584.8,1584.7,5.03119342]
[1745305840254,7.07648,1584.8,1584.7,5.03119342]
[1745305841251,7.18865922,1584.8,1584.7,3.66464342]
[1745305842359,12.18865922,1584.8,1584.7,2.30415342]
[1745305842661,12.18866398,1584.8,1584.7,2.30415342]